bitfinex/quotes_ETHUSD_20260121
["timestamp","ask_amount","ask_price","bid_price","bid_amount"]
[1769016767110,30.0,2884.9,2883.7,0.002]
[1769016768232,30.0,2884.9,2883.5,0.002]
[1769016768531,0.573,2884.8,2883.5,0.002]
[1769016768826,30.0,2884.5,2883.5,0.002]
[1769016769031,30.0,2884.3,2883.5,0.002]
[1769016769641,30.0,2884.3,2883.0,0.002]
[1769016769800,12.81845032,2883.8,2881.3,3.4706368]
[1769016770125,5.39386811,2884.2,2881.2,3.47070717]
[1769016770126,30.0,2883.6,2881.2,3.47070717]
[1769016770446,1.30111592,2883.5,2881.7,12.7896407]
[1769016770595,30.0,2883.3,2881.7,12.7896407]
[1769016770798,30.0,2883.1,2881.3,0.34507263]
[1769016771011,30.0,2883.1,2881.2,3.47073729]
[1769016771346,42.81845032,2882.7,2880.9,0.0201968]
[1769016771507,0.573,2882.8,2880.9,0.0201968]
[1769016771713,30.0,2882.7,2880.9,0.0201968]
[1769016771939,30.0,2882.5,2880.9,0.0201968]
[1769016772329,14.762,2882.5,2880.9,0.0201968]
[1769016772529,2.716,2882.5,2881.3,3.4705955]
[1769016772841,30.0,2882.6,2880.9,3.49126782]
[1769016773042,0.57733,2882.4,2880.9,0.0201968]
[1769016773216,0.57733,2882.4,2880.9,3.49133429]
[1769016773414,30.0,2882.6,2880.9,6.96247178]
[1769016773615,30.0,2882.6,2880.9,0.0201968]
[1769016773818,30.0,2882.4,2880.9,0.0201968]
[1769016774326,30.0,2882.3,2880.9,0.0201968]
[1769016774543,13.0573,2882.2,2880.9,0.0201968]
[1769016774847,30.0,2882.3,2880.9,3.49127113]
[1769016775012,12.81845032,2883.2,2880.9,3.49127113]
[1769016775345,30.0,2883.0,2880.9,23.22318681]
[1769016775715,29.595,2883.7,2881.0,12.7896407]
[1769016775950,3.96415248,2883.6,2881.2,12.7896407]
[1769016776117,0.573,2883.6,2881.2,12.7896407]
[1769016776945,30.0,2883.4,2881.4,12.7896407]
[1769016777246,30.0,2883.4,2881.2,3.47074069]
[1769016777419,30.0,2883.2,2881.3,12.7896407]
[1769016777747,0.573,2883.1,2881.3,12.7896407]
[1769016777959,3.46800762,2883.5,2881.3,12.7896407]
[1769016778261,30.0,2883.2,2881.3,12.7896407]
[1769016778440,13.0573,2883.1,2881.3,12.7896407]
[1769016778649,30.0,2883.2,2880.9,0.0201968]
[1769016778832,30.0,2883.0,2880.9,0.0201968]
[1769016779341,30.0,2883.0,2880.9,3.49131608]
[1769016779537,30.0,2883.0,2880.9,0.0201968]
[1769016779738,30.0,2882.8,2880.9,0.0201968]
[1769016779925,30.0,2882.6,2880.9,0.0201968]
[1769016780734,13.876843,2882.5,2880.9,0.0201968]
[1769016780936,12.59990106,2882.2,2879.6,3.47269227]
[1769016781135,12.59990106,2882.2,2879.5,15.9046337]
[1769016781136,30.0,2882.0,2879.9,3.47225454]
[1769016781326,30.0,2882.0,2879.9,3.47228684]
[1769016781526,11.30311401,2881.9,2880.1,12.4318131]
[1769016781728,0.574,2882.1,2880.2,12.4318131]
[1769016781959,0.574,2882.1,2880.0,0.69447152]
[1769016781960,30.0,2882.0,2880.1,3.47203114]
[1769016782211,30.0,2882.0,2879.6,12.4318131]
[1769016782465,8.379,2881.8,2879.9,12.4318131]
[1769016782770,18.379,2881.8,2879.7,3.47049926]
[1769016782923,30.0,2881.6,2879.4,3.47294575]
[1769016783127,30.0,2881.6,2879.5,12.4318131]
[1769016783458,30.0,2881.6,2878.5,0.574]
[1769016783459,12.59990106,2880.5,2878.3,0.1811622]
[1769016783660,12.59990106,2880.1,2877.4,0.23026739]
[1769016783971,0.39180502,2881.0,2877.4,0.23026739]
[1769016783972,27.696082,2879.9,2877.4,12.4318131]
[1769016784168,5.39386811,2881.3,2876.9,0.2209586]
[1769016784169,0.574,2880.2,2878.3,12.4318131]
[1769016784476,0.574,2880.9,2878.5,12.4318131]
[1769016784762,4.245,2880.8,2879.3,3.47301949]
[1769016784925,0.574,2881.1,2879.0,12.4318131]
[1769016785127,27.696082,2881.0,2879.0,12.4318131]
[1769016785344,12.59990106,2880.9,2878.1,6.94902886]
[1769016785522,27.696082,2880.7,2878.2,0.69490289]
[1769016785730,27.696082,2880.5,2878.2,13.12671599]
[1769016786332,0.574,2880.6,2878.2,13.12671599]
[1769016786534,9.436,2880.5,2878.2,13.12671599]
[1769016786733,17.35267575,2881.4,2878.2,13.12671599]
[1769016786734,12.59990106,2881.0,2878.2,13.12671599]
[1769016786938,2.317,2880.7,2878.6,12.4318131]
[1769016787139,1.63686649,2881.5,2878.6,12.4318131]
[1769016787358,1.63686649,2881.5,2878.8,12.51329056]
[1769016787661,27.696082,2881.5,2878.8,12.4318131]
[1769016787859,34.63474422,2882.4,2879.0,12.4318131]
[1769016788165,27.696082,2882.1,2879.0,13.0058131]
[1769016788369,2.7696082,2882.0,2879.2,12.4318131]
[1769016788552,27.696082,2882.2,2879.4,12.4318131]
[1769016788952,27.696082,2882.0,2879.5,6.94565028]
[1769016789632,6.93938446,2882.1,2879.5,6.94565028]
[1769016789633,27.696082,2881.8,2879.5,6.94565028]
[1769016789831,27.696082,2881.6,2879.4,3.47292261]
[1769016790334,3.39115248,2881.7,2879.4,10.41881411]
[1769016790538,3.39115248,2881.7,2879.5,12.4318131]
[1769016790855,27.696082,2881.7,2879.5,12.4318131]
[1769016791069,27.696082,2881.5,2879.5,15.90460594]
[1769016791763,27.696082,2881.5,2879.4,3.47289506]
[1769016791932,12.59990106,2881.4,2879.0,3.47335527]
[1769016792135,12.59990106,2881.1,2878.3,12.4318131]
[1769016792338,27.696082,2880.9,2878.3,12.4318131]
[1769016792546,27.696082,2880.7,2878.3,12.4318131]
[1769016792946,6.94323902,2880.5,2878.5,6.94806322]
[1769016793170,6.94323902,2880.5,2877.0,5.42230916]
[1769016793171,0.7517239,2880.4,2877.0,5.42230916]
[1769016793360,27.696082,2880.3,2877.4,12.4318131]
[1769016793564,12.59990106,2879.9,2877.1,3.47568785]
[1769016793735,12.64990106,2879.7,2876.9,12.6527717]
[1769016793945,3.39115248,2879.6,2877.5,12.4318131]
[1769016794290,0.7517239,2880.4,2878.4,22.85427]
[1769016794438,28.270082,2880.8,2878.5,12.4318131]
[1769016794639,28.270082,2880.8,2877.9,0.574]
[1769016794640,27.696082,2880.7,2877.9,12.4318131]
[1769016794852,13.17390106,2880.6,2877.9,12.4318131]
[1769016795071,27.696082,2880.3,2878.0,3.47455576]
[1769016795450,0.574,2880.2,2877.9,15.90656899]
[1769016795646,0.574,2880.2,2877.3,0.002]
[1769016795647,12.69429523,2880.0,2877.3,0.002]
[1769016795867,0.574,2880.2,2877.3,0.002]
[1769016795868,12.74429523,2879.8,2877.3,0.002]
[1769016796175,27.696082,2879.4,2877.3,0.002]
[1769016796378,12.69429523,2879.0,2877.3,0.002]
[1769016796553,0.05,2878.6,2877.0,0.002]
[1769016796898,27.696082,2879.0,2877.0,0.002]
[1769016797047,27.696082,2878.8,2877.0,0.002]
[1769016797362,12.69429523,2879.5,2877.0,0.002]
[1769016797561,3.47294575,2879.4,2877.0,12.75476962]
[1769016797773,3.47223062,2880.0,2877.0,12.75476962]
[1769016798076,27.696082,2879.9,2877.0,12.75476962]
[1769016798279,27.696082,2879.7,2877.2,12.75276962]
[1769016798475,3.39115248,2879.8,2877.2,12.75276962]
[1769016798674,2.031,2879.9,2877.2,12.75276962]
[1769016798876,1.17373092,2880.1,2877.2,12.75276962]
[1769016799078,1.17373092,2880.1,2877.4,12.75276962]
[1769016799374,0.001,2880.3,2877.4,14.51235137]
[1769016799569,0.001,2880.3,2877.3,17.45887986]
[1769016799570,0.001,2880.3,2877.6,12.75276962]
[1769016799772,0.001,2880.3,2877.6,14.47735754]
[1769016800182,0.001,2880.3,2878.2,12.75276962]
[1769016800478,0.001,2880.3,2877.8,5.42230916]
[1769016800479,0.001,2880.3,2878.4,12.75276962]
[1769016800845,0.001,2880.3,2878.5,12.75276962]
[1769016801177,0.001,2880.3,2878.7,12.75276962]
[1769016802170,0.001,2880.3,2878.8,0.574]
[1769016802584,0.001,2880.3,2878.7,12.75276962]
[1769016802786,0.001,2880.3,2878.6,3.47391092]
[1769016802787,0.001,2880.3,2878.1,12.75276962]
[1769016802981,0.001,2880.3,2878.5,3.4740179]
[1769016803182,0.001,2880.3,2878.6,12.75276962]
[1769016804076,3.4706533,2881.4,2878.6,12.75276962]
[1769016804274,3.47070887,2881.3,2878.6,12.75276962]
[1769016804475,3.46945147,2882.3,2878.9,12.75276962]
[1769016804675,27.696082,2882.1,2879.3,12.75276962]
[1769016804878,27.696082,2882.1,2879.5,12.75276962]
[1769016805083,3.46981263,2882.0,2879.7,12.75276962]
[1769016805789,6.93962526,2882.0,2879.7,12.75276962]
[1769016806292,3.46921075,2882.5,2879.7,12.83424708]
[1769016806493,0.40432108,2882.4,2880.2,12.75276962]
[1769016806678,0.001,2882.9,2880.4,12.75276962]
[1769016806860,0.001,2882.9,2880.8,12.75276962]
[1769016807060,0.001,2882.9,2880.9,7.51627498]
[1769016807260,27.696082,2882.8,2880.0,12.75276962]
[1769016807589,27.696082,2882.7,2880.2,3.47196755]
[1769016807780,2.7697082,2882.7,2880.3,13.09996638]
[1769016807958,0.001,2882.9,2880.8,6.94249336]
[1769016808158,0.001,2882.9,2880.9,12.75276962]
[1769016808593,0.001,2882.9,2881.1,12.75276962]
[1769016808892,0.001,2882.9,2880.8,17.3562673]
[1769016808893,0.001,2882.9,2880.8,23.16652096]
[1769016809189,0.001,2882.9,2881.0,10.413051]
[1769016809376,0.001,2882.9,2881.1,12.75276962]
[1769016809762,0.001,2882.9,2880.9,1.02227199]
[1769016809961,0.001,2882.9,2880.8,0.574]
[1769016810176,0.001,2882.9,2880.9,6.94225493]
[1769016810376,0.001,2882.9,2880.8,0.574]
[1769016810660,0.001,2882.9,2881.0,12.75276962]
[1769016811186,0.001,2882.9,2881.2,12.75276962]
[1769016811375,0.001,2882.9,2881.4,12.75276962]
[1769016811687,0.001,2882.9,2881.6,12.75276962]
[1769016811855,0.001,2882.9,2881.5,0.574]
[1769016812806,0.001,2882.9,2880.4,12.75276962]
[1769016812981,0.001,2882.9,2881.2,0.574]
[1769016813378,0.001,2882.9,2881.1,0.574]
[1769016813577,0.001,2882.9,2880.6,16.22422479]
[1769016813801,0.001,2882.9,2881.0,3.47094909]
[1769016814111,0.001,2882.9,2881.1,3.47080009]
[1769016814311,0.001,2882.9,2881.2,3.47072711]
[1769016814820,0.001,2882.9,2881.0,0.34709491]
[1769016815024,0.001,2882.9,2880.6,13.32676962]
[1769016815194,0.001,2882.9,2880.7,16.22410902]
[1769016815700,0.001,2882.9,2880.7,19.6954875]
[1769016816318,27.696082,2882.8,2880.5,3.47155469]
[1769016816620,2.7697082,2882.7,2880.6,20.04288839]
[1769016816842,0.001,2882.9,2880.7,12.83424708]
[1769016816995,0.001,2882.9,2881.2,12.75276962]
[1769016817188,0.001,2882.9,2881.5,23.16401375]
[1769016817392,0.001,2882.9,2881.4,3.47052801]
[1769016817601,0.001,2882.9,2881.1,3.47083023]
[1769016817800,0.001,2882.9,2881.1,3.47084568]
[1769016818023,0.001,2882.9,2881.4,19.69380038]
[1769016818524,0.001,2882.9,2881.5,12.75276962]
[1769016818906,3.4677671,2883.7,2881.5,12.75276962]
[1769016819110,3.4677671,2883.7,2881.0,0.65547746]
[1769016819111,3.46800762,2883.5,2881.6,4.49253441]
[1769016819342,6.93601524,2883.5,2881.6,3.47027006]
[1769016819834,0.001,2882.7,2881.2,0.574]
[1769016820236,0.001,2882.7,2881.3,7.31058415]
[1769016820857,0.001,2882.7,2881.1,0.574]
[1769016820858,0.001,2882.7,2880.9,12.75476962]
[1769016820996,0.001,2882.7,2881.1,3.47089442]
[1769016821202,0.001,2882.7,2881.0,0.574]
[1769016821397,0.001,2882.7,2880.9,12.75476962]
[1769016821602,0.001,2882.7,2880.9,0.576]
[1769016822154,0.001,2882.7,2881.0,3.47100606]
[1769016822360,0.001,2882.7,2881.1,0.40470061]
[1769016823166,0.001,2882.7,2881.1,13.15747023]
[1769016823448,0.001,2882.7,2881.2,0.574]
[1769016823614,0.001,2882.7,2881.1,16.62831621]
[1769016823815,0.001,2882.7,2881.1,17.20231621]
[1769016824017,0.001,2882.7,2881.2,0.96476814]
[1769016824234,0.001,2882.7,2881.2,13.71753776]
[1769016824445,0.001,2882.7,2881.2,0.96476814]
[1769016824645,0.001,2882.7,2881.1,6.94178262]
[1769016824948,0.001,2882.7,2881.1,19.69455224]
[1769016825258,0.34677671,2883.6,2881.7,12.75276962]
[1769016825410,3.46796016,2883.6,2881.7,12.75276962]
[1769016825910,3.46697326,2884.4,2882.0,12.11686946]
[1769016825911,6.9339516,2884.4,2882.0,12.11686946]
[1769016826117,6.9339516,2884.4,2882.4,12.11686946]
[1769016826118,3.46692553,2884.4,2882.4,12.11686946]
[1769016826346,0.18104867,2884.5,2882.4,12.11686946]
[1769016826542,6.93380662,2884.5,2882.4,12.11686946]
[1769016826845,0.69338066,2884.4,2882.5,12.19834692]
[1769016827052,10.39681164,2885.5,2882.8,12.11686946]
[1769016827377,10.3975323,2885.3,2882.9,16.15959886]
[1769016827550,6.9316882,2885.3,2883.0,12.11686946]
[1769016827714,12.29088618,2885.2,2882.9,3.4687294]
[1769016827910,12.29088618,2885.0,2882.8,4.04284353]
[1769016828131,12.29088618,2885.0,2882.8,7.51169325]
[1769016828337,27.696082,2884.9,2881.8,12.11686946]
[1769016828513,12.29088618,2884.6,2882.0,12.11686946]
[1769016828718,6.98133531,2885.2,2882.8,3.46884258]
[1769016828719,3.39115248,2884.5,2882.8,3.46884258]
[1769016829026,39.98696818,2885.1,2882.8,3.46884382]
[1769016829223,10.39897395,2884.9,2882.4,6.93866222]
[1769016829543,6.9326493,2884.9,2882.5,12.11686946]
[1769016830331,10.39897395,2884.9,2882.5,12.11686946]
[1769016830647,10.39897395,2884.9,2882.6,0.574]
[1769016830849,1.0398974,2884.8,2882.6,12.69086946]
[1769016831236,1.0398974,2884.8,2882.7,0.574]
[1769016831552,6.93312996,2884.7,2882.8,3.46884972]
[1769016831763,12.29088618,2884.4,2882.1,3.46962378]
[1769016831924,39.98696818,2884.2,2882.1,0.69395183]
[1769016832123,39.98696818,2884.2,2882.1,4.1636065]
[1769016832124,12.29088618,2884.2,2882.1,4.1636065]
[1769016832635,12.29088618,2884.2,2882.2,3.46955702]
[1769016832953,12.29088618,2884.2,2882.2,3.46952305]
[1769016833156,12.29088618,2884.2,2882.3,0.41634749]
[1769016833456,6.9345723,2884.1,2882.3,0.41634749]
[1769016833754,6.9345723,2884.1,2882.3,3.8857825]
[1769016834054,10.40185845,2884.1,2882.3,0.41634749]
[1769016834252,6.9345723,2884.1,2882.2,3.46950846]
[1769016834451,6.9345723,2884.1,2882.3,6.93884337]
[1769016834641,13.33078358,2884.8,2882.4,12.11686946]
[1769016834844,6.93319453,2884.7,2882.4,12.11686946]
[1769016835230,10.39982408,2884.7,2882.4,12.11686946]
[1769016835452,6.93361066,2884.5,2882.7,12.11686946]
[1769016836838,4.61067715,2884.6,2882.7,12.11686946]
[1769016837026,3.466705,2884.6,2882.7,12.11686946]
[1769016837229,0.001,2885.1,2883.0,12.11686946]
[1769016837440,0.001,2885.1,2883.2,12.11686946]
[1769016837657,0.001,2885.1,2883.4,12.11686946]
[1769016838028,0.001,2885.1,2883.6,12.11686946]
[1769016838227,0.001,2886.5,2883.8,12.11686946]
[1769016838435,0.001,2886.5,2884.0,12.11686946]
[1769016838436,6.92904656,2886.4,2884.0,12.11686946]
[1769016839048,12.71339351,2886.3,2884.1,0.574]
[1769016839253,12.71339351,2886.3,2884.0,0.574]
[1769016839448,40.40947551,2886.1,2883.8,0.574]
[1769016839648,27.696082,2886.0,2883.8,4.04164065]
[1769016839847,27.696082,2886.0,2883.8,0.574]
[1769016840053,27.696082,2885.8,2883.6,4.04180596]
[1769016840257,13.983,2885.8,2883.9,3.46746093]
[1769016840459,2.66963935,2885.7,2883.9,0.6935208]
[1769016840786,2.66963935,2885.7,2883.3,3.46816778]
[1769016840787,27.696082,2885.5,2883.3,3.46816778]
[1769016840948,2.66963935,2885.7,2883.3,12.13893087]
[1769016841133,25.4183799,2886.2,2883.7,3.46772093]
[1769016841134,28.88314325,2886.2,2883.7,3.46772093]
[1769016841464,6.93024706,2885.9,2883.8,12.13893087]
[1769016841767,3.4648834,2886.1,2883.8,12.13893087]
[1769016841964,13.28639351,2886.7,2884.0,12.22040833]
[1769016841965,3.46453275,2886.4,2884.0,12.22040833]
[1769016842167,0.34655328,2886.3,2884.3,12.13893087]
[1769016842463,12.71339351,2886.1,2883.7,19.07446375]
[1769016842673,27.696082,2886.0,2883.7,12.13893087]
[1769016842872,24.811,2886.0,2883.7,12.13893087]
[1769016843043,0.34655328,2886.3,2884.0,12.13893087]
[1769016843248,3.46452328,2886.4,2884.2,12.13893087]
[1769016843448,3.46416323,2886.7,2884.3,6.93409146]
[1769016843643,3.46416323,2886.7,2884.3,3.46704573]
[1769016843644,0.001,2886.1,2884.3,3.46704573]
[1769016844150,0.001,2886.1,2884.3,6.93409146]
[1769016844638,0.001,2886.1,2884.3,3.46704573]
[1769016844836,0.001,2886.1,2884.4,1.36946875]
[1769016845056,0.001,2886.1,2884.3,3.46704573]
[1769016845367,0.001,2886.1,2883.9,0.573]
[1769016845564,0.001,2886.1,2883.9,12.71193087]
[1769016846473,0.001,2886.1,2883.9,12.13893087]
[1769016846634,12.71439351,2886.1,2883.9,12.13893087]
[1769016847040,0.001,2886.1,2883.9,12.13893087]
[1769016847569,0.001,2886.1,2884.1,12.13893087]
[1769016847970,0.001,2886.1,2884.0,4.04040638]
[1769016848273,0.001,2886.1,2884.1,12.13893087]
[1769016848762,12.71439351,2886.1,2883.5,12.13893087]
[1769016848964,12.71339351,2885.7,2883.0,15.60750613]
[1769016849273,27.696082,2885.4,2883.0,12.13893087]
[1769016849457,10.3975323,2885.3,2883.1,3.46848754]
[1769016849642,40.40947551,2885.0,2882.4,17.29148389]
[1769016849836,27.696082,2884.8,2882.8,3.46875571]
[1769016850035,40.40947551,2884.8,2882.6,3.46901403]
[1769016850268,27.696082,2884.5,2882.7,0.4042014]
[1769016850480,27.696082,2884.5,2882.3,3.46943698]
[1769016850481,12.71339351,2884.5,2882.3,3.46943698]
[1769016850657,27.696082,2884.4,2882.2,0.573]
[1769016850838,40.40947551,2884.2,2881.8,12.13893087]
[1769016851039,3.39115248,2884.1,2881.8,15.60891165]
[1769016851240,12.71339351,2884.0,2881.1,12.13893087]
[1769016851443,10.40366208,2883.6,2881.2,6.94155212]
[1769016851644,27.696082,2883.5,2881.2,3.47077606]
[1769016851839,3.39115248,2883.4,2881.1,12.13893087]
[1769016852043,12.71339351,2883.3,2881.1,6.94178264]
[1769016852246,12.71339351,2883.4,2880.9,0.002]
[1769016852438,12.71339351,2882.8,2880.9,0.002]
[1769016852673,27.696082,2882.6,2880.9,0.002]
[1769016852975,27.696082,2882.5,2880.9,0.002]
[1769016853148,27.696082,2882.3,2880.9,0.002]
[1769016853545,27.696082,2882.1,2880.6,0.002]
[1769016853751,40.40947551,2882.1,2880.6,0.002]
[1769016853950,3.581,2882.0,2880.6,0.002]
[1769016854188,3.46957185,2882.2,2880.6,0.002]
[1769016854352,0.34695719,2882.1,2880.6,0.002]
[1769016855155,0.573,2883.0,2880.6,0.002]
[1769016855360,8.978,2882.9,2880.8,0.002]
[1769016855572,6.93769944,2882.8,2880.8,0.002]
[1769016856050,16.93673694,2883.2,2880.8,11.80319268]
[1769016856248,2.96501305,2883.1,2880.9,11.80119268]
[1769016856477,0.573,2883.7,2881.1,11.80119268]
[1769016856680,31.16300753,2884.4,2881.3,11.80119268]
[1769016856880,27.696082,2884.3,2881.3,11.80119268]
[1769016857103,3.39115248,2884.2,2881.5,11.80119268]
[1769016857258,39.97396025,2883.9,2881.0,12.37519268]
[1769016857583,23.769,2883.8,2881.0,12.37519268]
[1769016857769,10.32668668,2883.7,2881.2,11.80119268]
[1769016858952,10.4033013,2883.7,2881.2,11.80119268]
[1769016859178,6.9355342,2883.7,2881.2,11.80119268]
[1769016859378,12.27787825,2883.5,2881.1,3.47089653]
[1769016859583,27.696082,2883.4,2881.0,3.47097937]
[1769016859791,10.32764884,2883.3,2881.1,12.14829062]
[1769016859988,10.32764884,2883.3,2881.1,11.80119268]
[1769016859989,10.40474454,2883.3,2881.1,11.80119268]
[1769016860289,10.40474454,2883.3,2880.8,0.002]
[1769016860589,2.04047445,2883.2,2880.9,0.6944757]
[1769016860884,3.46824818,2883.3,2881.0,11.80119268]
[1769016861084,6.93649636,2883.3,2881.0,11.80119268]
[1769016861876,27.696082,2883.4,2881.1,6.94179306]
[1769016862081,3.39115248,2883.3,2881.2,0.67499305]
[1769016862301,12.27787825,2883.3,2881.2,0.67499305]
[1769016862597,27.696082,2883.0,2880.8,0.002]
[1769016863113,3.117,2883.4,2881.1,11.80119268]
[1769016863317,3.46800762,2883.5,2881.1,11.80119268]
[1769016863601,3.46728615,2884.1,2881.3,11.80119268]
[1769016863909,20.40149779,2884.2,2881.5,11.80119268]
[1769016864199,12.27787825,2883.8,2881.4,6.9410703]
[1769016864397,3.39115248,2883.7,2881.5,0.69410703]
[1769016864605,12.27787825,2883.7,2881.5,0.69410703]
[1769016864760,12.27787825,2883.7,2881.4,6.9410703]
[1769016864963,13.86866372,2884.2,2881.5,11.80119268]
[1769016865184,6.93433186,2884.2,2881.5,11.80119268]
[1769016865689,12.27787825,2884.1,2881.5,11.80119268]
[1769016866382,6.93481276,2884.0,2881.7,11.80119268]
[1769016866685,1.9212691,2883.9,2881.9,11.80119268]
[1769016866890,6.93481276,2884.0,2881.9,11.80119268]
[1769016867190,19.21269101,2884.0,2881.6,6.94058856]
[1769016867407,19.21269101,2884.0,2881.7,11.80119268]
[1769016867688,6.93481276,2884.0,2881.7,11.80119268]
[1769016867890,0.001,2883.5,2881.7,11.80119268]
[1769016868094,0.001,2883.5,2881.9,11.80119268]
[1769016868265,0.001,2883.5,2882.1,11.80119268]
[1769016869187,0.001,2883.5,2882.1,12.37519268]
[1769016869492,0.001,2883.5,2882.0,6.93962526]
[1769016869693,0.001,2883.5,2882.1,0.69396253]
[1769016870285,0.001,2883.5,2882.2,15.27076453]
[1769016870486,0.001,2883.5,2882.3,11.80119268]
[1769016870670,3.46628234,2885.0,2882.3,11.80119268]
[1769016870872,11.03984511,2884.9,2882.5,11.80119268]
[1769016871495,13.31772336,2884.9,2882.5,12.37519268]
[1769016871668,1.03984511,2884.9,2882.5,12.37519268]
[1769016872422,3.46644481,2884.8,2882.7,11.80119268]
[1769016872578,12.27787825,2884.7,2882.6,3.4690904]
[1769016872775,2.26772127,2884.6,2882.7,0.34690904]
[1769016873463,1.03984511,2884.9,2882.4,0.67550622]
[1769016873670,0.34690904,2882.6,2880.8,0.002]
[1769016873868,8.90911402,2883.0,2880.8,0.002]
[1769016873869,1.08330673,2882.5,2880.8,0.002]
[1769016874076,10.33465187,2883.0,2880.8,0.002]
[1769016874383,27.696082,2882.8,2880.9,11.80119268]
[1769016874567,20.4061882,2882.9,2880.9,11.80119268]
[1769016874568,3.4687294,2882.9,2880.9,11.80119268]
[1769016874766,8.02832399,2882.9,2880.9,11.80119268]
[1769016875021,1.09086519,2882.9,2880.9,11.80119268]
[1769016875232,3.46865494,2883.0,2880.9,11.80119268]
[1769016875713,6.93730988,2883.0,2880.9,11.80119268]
[1769016876273,3.46784016,2883.7,2881.0,3.471017]
[1769016876475,27.696082,2883.6,2881.1,11.80119268]
[1769016877205,27.696082,2883.5,2881.1,11.80119268]
[1769016877526,27.696082,2883.3,2881.1,11.80119268]
[1769016877911,3.453,2883.3,2881.1,11.80119268]
[1769016878117,27.696082,2883.8,2881.1,11.80119268]
[1769016878403,27.696082,2883.6,2881.3,11.80119268]
[1769016878979,9.358,2883.6,2881.3,11.80119268]
[1769016879180,2.32290684,2883.5,2881.5,11.80119268]
[1769016880011,0.001,2883.1,2881.5,11.80119268]
[1769016881284,0.001,2883.1,2881.6,11.80119268]
[1769016882578,0.001,2883.1,2881.8,11.80119268]
[1769016882783,0.001,2883.1,2881.8,12.37519268]
[1769016883101,0.001,2883.1,2882.0,11.80119268]
[1769016884729,0.001,2883.1,2881.9,0.574]
[1769016885786,0.001,2883.1,2881.7,16.44630993]
[1769016885988,0.001,2883.1,2881.7,17.02030993]
[1769016886182,0.001,2883.1,2881.7,13.5501471]
[1769016886383,0.001,2883.1,2881.2,12.9761471]
[1769016886688,0.001,2883.1,2881.3,17.02076809]
[1769016887006,0.001,2883.1,2881.3,13.5501471]
[1769016887512,0.001,2883.1,2881.5,12.9761471]
[1769016888686,0.001,2883.1,2881.6,12.9761471]
[1769016891583,0.001,2883.1,2881.7,0.574]
[1769016891816,0.001,2883.1,2881.6,12.9761471]
[1769016892389,0.001,2882.9,2881.6,12.9761471]
[1769016894022,8.91011402,2882.9,2881.1,0.002]
[1769016894221,36.60519602,2882.6,2881.1,0.002]
[1769016894414,3.39115248,2882.5,2881.1,12.9781471]
[1769016894725,0.001,2882.9,2881.3,12.9761471]
[1769016896919,0.001,2882.9,2881.1,0.002]
[1769016897301,0.001,2882.9,2881.1,12.9781471]
[1769016900129,27.696082,2882.8,2881.1,0.002]
[1769016900341,12.7697082,2882.7,2881.1,0.002]
[1769016900508,2.7697082,2882.7,2881.1,0.002]
[1769016901023,2.7697082,2882.7,2881.2,12.59293589]
[1769016901194,0.001,2882.9,2881.2,12.59293589]
[1769016901392,0.001,2882.9,2881.2,12.66925985]
[1769016901593,27.696082,2884.7,2881.9,12.59293589]
[1769016901819,27.696082,2884.5,2882.1,12.59293589]
[1769016902007,27.696082,2884.3,2882.2,12.59293589]
[1769016902214,27.696082,2884.3,2882.2,13.16693589]
[1769016902416,3.39115248,2884.4,2882.2,13.16693589]
[1769016902632,3.46668515,2884.6,2882.5,12.59293589]
[1769016902836,27.696082,2884.5,2882.5,13.16693589]
[1769016903348,6.9333703,2884.6,2882.5,13.16693589]
[1769016903627,10.40005545,2884.6,2882.5,12.59293589]
[1769016903800,3.46668515,2884.6,2882.5,13.16693589]
[1769016903996,1.69332918,2884.5,2882.5,12.59293589]
[1769016904434,27.696082,2884.4,2881.8,12.59293589]
[1769016904613,27.696082,2884.3,2881.9,16.63685952]
[1769016904916,10.001,2884.2,2882.0,16.06274547]
[1769016905101,1.0001,2884.1,2882.0,12.59293589]
[1769016905537,8.91010402,2883.9,2881.8,0.002]
[1769016905850,27.696082,2883.6,2881.8,0.002]
[1769016906196,3.4677671,2883.7,2881.8,12.59493589]
[1769016906537,0.001,2884.2,2881.8,12.59493589]
[1769016906538,3.46728615,2884.1,2882.0,12.59293589]
[1769016906833,6.9345723,2884.1,2882.0,12.59293589]
[1769016907213,13.8691446,2884.1,2882.0,12.59293589]
[1769016907532,27.696082,2884.0,2882.0,12.59293589]
[1769016907715,10.40257983,2883.9,2882.0,12.59293589]
[1769016907919,27.696082,2883.7,2882.0,12.59293589]
[1769016908232,27.696082,2883.7,2881.8,0.002]
[1769016909554,3.39115248,2883.8,2882.0,12.59293589]
[1769016909697,3.46821309,2884.2,2882.1,12.59293589]
[1769016909698,0.001,2884.2,2882.1,12.59293589]
[1769016909898,0.001,2884.2,2882.3,12.59293589]
[1769016910132,0.001,2884.2,2882.8,12.59293589]
[1769016910320,6.93072736,2885.7,2882.9,12.66925985]
[1769016910524,3.46536368,2885.7,2883.3,12.59293589]
[1769016910836,27.696082,2885.6,2883.5,12.59293589]
[1769016911204,0.001,2886.1,2883.5,12.59293589]
[1769016911736,0.001,2886.1,2883.8,12.59293589]
[1769016912409,27.696082,2885.8,2883.8,12.59293589]
[1769016912604,2.7697082,2885.7,2883.8,12.59293589]
[1769016912811,0.001,2886.1,2883.8,12.59293589]
[1769016912812,27.696082,2885.8,2883.8,12.59293589]
[1769016913501,0.001,2886.1,2883.8,12.59293589]
[1769016913804,0.001,2886.1,2884.0,12.59293589]
[1769016914009,0.001,2886.1,2884.2,12.59293589]
[1769016916318,0.001,2886.1,2884.3,11.85969623]
[1769016917921,0.001,2885.7,2884.5,11.85969623]
[1769016920337,36.60717602,2885.4,2882.2,11.85969623]
[1769016920538,8.91109402,2885.1,2882.4,11.85969623]
[1769016920712,27.696082,2885.0,2882.4,11.85969623]
[1769016921447,3.39115248,2885.3,2882.8,11.85969623]
[1769016921623,27.696082,2885.6,2882.9,11.85969623]
[1769016922041,27.696082,2885.4,2882.9,11.85969623]
[1769016922240,27.696082,2885.4,2882.9,15.32842118]